bitfinex-derivatives/quotes_SOLF0:USTF0_20260207
["timestamp","ask_amount","ask_price","bid_price","bid_amount"]
[1770428862048,3.86993629,87.409,87.32,9.01916971]
[1770428862246,3.86993629,87.409,87.321,3.89412298]
[1770428862643,3.86993629,87.397,87.321,3.89412298]
[1770428862956,3.86993629,87.389,87.321,3.89412298]
[1770428863147,3.86993629,87.378,87.319,10.3139]
[1770428863451,9.01916971,87.41,87.299,3.89412298]
[1770428863452,3.86993629,87.369,87.299,3.89412298]
[1770428864147,3.86993629,87.369,87.309,10.3152]
[1770428864746,3.86993629,87.353,87.299,10.3163]
[1770428865558,3.86993629,87.351,87.278,3.89412298]
[1770428866151,3.86993629,87.369,87.297,3.89412298]
[1770428866346,3.629e-05,87.369,87.297,3.89412298]
[1770428866547,9.01916971,87.41,87.297,3.89412298]
[1770428866752,10.306,87.387,87.33,10.3126]
[1770428866950,9.01916971,87.39,87.297,3.89412298]
[1770428867144,9.01916971,87.41,87.297,3.89412298]
[1770428867547,10.3056,87.391,87.297,3.89412298]
[1770428868357,10.3066,87.382,87.325,10.3133]
[1770428868558,3.86993629,87.381,87.325,10.3133]
[1770428868851,3.86993629,87.381,87.314,14.20862298]
[1770428869050,3.86993629,87.381,87.314,3.89412298]
[1770428869652,3.86993629,87.376,87.322,10.3136]
[1770428870347,14.17733629,87.376,87.322,10.3136]
[1770428870553,3.86993629,87.375,87.322,10.3136]
[1770428871654,3.86993629,87.366,87.306,10.3155]
[1770428871958,3.86993629,87.366,87.296,3.89412298]
[1770428872255,3.86993629,87.366,87.276,3.89412298]
[1770428872457,3.86993629,87.349,87.276,3.89412298]
[1770428873254,10.311,87.345,87.288,10.3176]
[1770428874856,3.86993629,87.349,87.298,10.3164]
[1770428875064,3.86993629,87.349,87.276,3.89412298]
[1770428876662,3.86993629,87.347,87.287,10.3177]
[1770428877362,10.3112,87.344,87.287,10.3177]
[1770428878055,3.86993629,87.347,87.299,10.3164]
[1770428880067,10.3111,87.344,87.276,3.89412298]
[1770428880258,3.86993629,87.343,87.276,3.89412298]
[1770428881765,3.86993629,87.339,87.277,10.3189]
[1770428882768,3.86993629,87.335,87.277,10.3189]
[1770428884166,3.86993629,87.351,87.289,3.89412298]
[1770428884766,3.86993629,87.379,87.289,3.89412298]
[1770428884962,3.86993629,87.379,87.301,3.89412298]
[1770428885565,3.86993629,87.379,87.332,10.3124]
[1770428885767,3.8936095,87.396,87.318,3.88741265]
[1770428886361,3.8936095,87.389,87.318,3.88741265]
[1770428886963,3.8936095,87.389,87.33,14.20001265]
[1770428887162,3.8936095,87.389,87.33,3.88741265]
[1770428887366,10.3069,87.38,87.33,3.88741265]
[1770428887864,3.8936095,87.389,87.33,3.88741265]
[1770428888069,10.3062,87.386,87.331,10.3125]
[1770428889371,3.8936095,87.389,87.331,10.3125]
[1770428890071,3.8936095,87.389,87.334,3.70235084]
[1770428890276,3.7140041,87.407,87.334,3.70235084]
[1770428890476,3.7140041,87.407,87.349,10.3104]
[1770428892773,3.7140041,87.393,87.334,3.70235084]
[1770428892975,3.7140041,87.393,87.291,3.70235084]
[1770428893274,3.7140041,87.393,87.29,9.01916971]
[1770428893275,3.7140041,87.393,87.311,3.70235084]
[1770428893465,3.7140041,87.393,87.344,10.311]
[1770428893661,3.7140041,87.409,87.345,3.70235084]
[1770428893871,3.7140041,87.409,87.311,3.70235084]
[1770428894265,3.7140041,87.395,87.327,10.313]
[1770428894466,3.7140041,87.395,87.311,3.70235084]
[1770428894875,3.7140041,87.381,87.311,3.70235084]
[1770428895680,3.7140041,87.362,87.311,3.70235084]
[1770428896374,3.7140041,87.392,87.33,10.3127]
[1770428896677,3.7140041,87.392,87.311,3.70235084]
[1770428897665,10.3059,87.388,87.32,10.3139]
[1770428897871,3.7140041,87.387,87.321,3.70235084]
[1770428898869,3.7140041,87.382,87.323,10.3135]
[1770428899170,3.7140041,87.419,87.323,3.70235084]
[1770428900083,3.7140041,87.404,87.336,10.3119]
[1770428900776,10.3051,87.395,87.336,10.3119]
[1770428901476,3.7140041,87.403,87.345,10.3109]
[1770428902776,3.7140041,87.401,87.345,10.3109]
[1770428903169,10.3045,87.4,87.337,3.70235084]
[1770428903382,3.7140041,87.399,87.337,3.70235084]
[1770428904278,10.3047,87.398,87.339,14.01395084]
[1770428904679,10.3047,87.398,87.34,3.70235084]
[1770428904882,10.3035,87.408,87.352,3.70235084]
[1770428905078,3.7140041,87.407,87.352,3.70235084]
[1770428906786,10.304,87.405,87.352,3.70235084]
[1770428908582,10.304,87.405,87.353,10.31]
[1770428908789,10.3041,87.403,87.353,10.31]
[1770428909095,3.7140041,87.402,87.352,3.70235084]
[1770428909786,3.7140041,87.402,87.352,14.01235084]
[1770428910383,3.7140041,87.399,87.352,3.70235084]
[1770428910778,3.7140041,87.399,87.334,3.70235084]
[1770428911781,10.3062,87.386,87.334,3.70235084]
[1770428913384,3.7140041,87.373,87.313,3.70235084]
[1770428913695,3.7140041,87.369,87.295,3.70235084]
[1770428913880,3.7140041,87.34,87.279,3.70235084]
[1770428914691,3.7140041,87.34,87.282,3.70235084]
[1770428914884,3.7140041,87.369,87.282,3.70235084]
[1770428915080,10.3116,87.34,87.282,3.70235084]
[1770428915285,3.7140041,87.339,87.282,3.70235084]
[1770428915686,3.76747017,87.337,87.282,3.70235084]
[1770428916384,10.3121,87.335,87.282,3.70235084]
[1770428916591,3.76747017,87.355,87.282,3.70235084]
[1770428917793,3.76747017,87.343,87.282,3.70235084]
[1770428918795,10.3119,87.337,87.282,3.70235084]
[1770428919690,3.76747017,87.359,87.286,3.91307587]
[1770428920285,10.3106,87.348,87.286,3.91307587]
[1770428920998,10.3106,87.348,87.292,10.3171]
[1770428921297,10.3106,87.348,87.292,14.23017587]
[1770428921490,10.3106,87.348,87.293,3.91307587]
[1770428922694,10.3106,87.348,87.294,10.3169]
[1770428922894,10.3106,87.348,87.295,3.91307587]
[1770428923796,20.6089,87.401,87.25,8.98707202]
[1770428923797,3.76747017,87.337,87.278,3.91307587]
[1770428924601,10.3129,87.329,87.278,3.91307587]
[1770428925710,3.76747017,87.337,87.279,3.91307587]
[1770428926111,10.309,87.362,87.303,3.91307587]
[1770428926312,3.76747017,87.369,87.303,3.91307587]
[1770428926713,10.3088,87.364,87.305,3.91307587]
[1770428926909,3.76747017,87.363,87.305,3.91307587]
[1770428927314,3.76747017,87.359,87.29,3.91307587]
[1770428927815,3.76747017,87.345,87.29,3.91307587]
[1770428928419,3.76747017,87.345,87.293,10.317]
[1770428928712,3.76747017,87.345,87.294,3.91307587]
[1770428929417,3.76747017,87.365,87.303,3.91307587]
[1770428930210,10.3089,87.363,87.306,14.22857587]
[1770428930815,3.76747017,87.363,87.308,14.22827587]
[1770428931321,3.76747017,87.363,87.309,3.91307587]
[1770428932717,10.309,87.362,87.309,3.91307587]
[1770428932915,8.98707202,87.39,87.257,27.36086825]
[1770428932916,3.76747017,87.361,87.275,3.91307587]
[1770428933312,3.76747017,87.361,87.278,3.91307587]
[1770428933513,3.76747017,87.359,87.301,3.91307587]
[1770428933914,3.76747017,87.359,87.31,7.27105321]
[1770428935617,10.3096,87.357,87.31,7.27105321]
[1770428936215,3.76747017,87.359,87.32,3.35797734]
[1770428936418,10.3085,87.366,87.321,3.91307587]
[1770428936719,3.76747017,87.375,87.331,3.91307587]
[1770428936918,10.3078,87.372,87.331,3.91307587]
[1770428937218,3.35797734,87.39,87.331,3.91307587]
[1770428937518,7.12544751,87.39,87.331,3.91307587]
[1770428937721,3.76747017,87.389,87.331,3.91307587]
[1770428938715,10.3067,87.381,87.331,3.91307587]
[1770428938915,10.3067,87.381,87.34,3.35797734]
[1770428939114,10.3067,87.381,87.331,3.91307587]
[1770428940219,10.3067,87.381,87.34,3.35797734]
[1770428940418,20.6036,87.423,87.331,3.91307587]
[1770428940419,3.76747017,87.38,87.331,3.91307587]
[1770428940721,3.76747017,87.38,87.32,3.35797734]
[1770428940722,3.76747017,87.369,87.316,3.91307587]
[1770428941717,10.3104,87.35,87.316,3.91307587]
[1770428942523,10.3093,87.359,87.316,3.91307587]
[1770428945626,3.8616168,87.345,87.283,3.69824597]
[1770428946922,8.99333619,87.35,87.265,3.69824597]
[1770428946923,3.8616168,87.318,87.265,3.69824597]
[1770428947722,8.99333619,87.35,87.265,3.69824597]
[1770428947922,3.96913121,87.349,87.265,3.69824597]
[1770428948422,3.96913121,87.322,87.221,4.0013232]
[1770428948629,3.96913121,87.322,87.241,4.0013232]
[1770428948823,10.3154,87.308,87.244,4.0013232]
[1770428949025,3.96913121,87.322,87.244,4.0013232]
[1770428950425,10.3142,87.318,87.248,4.0013232]
[1770428951330,10.3152,87.309,87.253,4.0013232]
[1770428951630,3.96913121,87.322,87.253,4.0013232]
[1770428951833,10.3165,87.298,87.253,4.0013232]
[1770428954526,3.96913121,87.31,87.253,4.0013232]
[1770428955827,10.3165,87.299,87.253,4.0013232]
[1770428957331,3.96913121,87.31,87.253,4.0013232]
[1770428957935,10.3163,87.3,87.253,4.0013232]
[1770428958434,3.96913121,87.325,87.256,4.0013232]
[1770428958632,3.96913121,87.34,87.256,4.0013232]
[1770428958832,3.96913121,87.34,87.264,10.3205]
[1770428959136,10.3131,87.327,87.265,4.0013232]
[1770428959329,3.96913121,87.326,87.265,4.0013232]
[1770428960428,3.96913121,87.326,87.267,4.0013232]
[1770428960640,3.96913121,87.341,87.267,4.0013232]
[1770428961530,10.3118,87.339,87.278,4.0013232]
[1770428962938,10.3118,87.339,87.285,4.0013232]
[1770428964437,3.96913121,87.338,87.261,4.0013232]
[1770428964939,10.3141,87.319,87.271,4.0013232]
[1770428965128,3.96913121,87.338,87.271,4.0013232]
[1770428966740,10.3131,87.328,87.273,4.0013232]
[1770428966937,3.96913121,87.327,87.255,4.0013232]
[1770428967441,10.3164,87.299,87.255,4.0013232]
[1770428968338,10.3175,87.29,87.255,4.0013232]
[1770428969738,10.3175,87.29,87.242,10.3231]
[1770428970139,10.3175,87.29,87.242,14.3244232]
[1770428970535,10.3175,87.29,87.199,20.6564]
[1770428970536,3.96913121,87.332,87.247,4.0013232]
[1770428971032,3.96913121,87.332,87.251,4.0013232]
[1770428971839,10.3143,87.317,87.262,4.0013232]
[1770428972844,10.3143,87.317,87.266,10.3203]
[1770428973038,3.96913121,87.332,87.267,4.0013232]
[1770428973039,10.3133,87.326,87.267,4.0013232]
[1770428973237,3.96913121,87.332,87.267,4.0013232]
[1770428973437,3.96913121,87.332,87.286,4.0013232]
[1770428974234,10.3109,87.346,87.297,14.3179232]
[1770428974450,3.96913121,87.359,87.298,4.0013232]
[1770428974746,3.96913121,87.375,87.298,4.0013232]
[1770428975645,9.00285633,87.4,87.29,9.00285633]
[1770428975646,3.99426781,87.364,87.309,3.86567432]
[1770428976643,10.309,87.362,87.309,3.86567432]
[1770428976940,3.99426781,87.364,87.309,3.86567432]
[1770428977949,10.3101,87.353,87.309,3.86567432]
[1770428978549,3.99426781,87.399,87.309,3.86567432]
[1770428979245,14.30196781,87.373,87.312,3.86567432]
[1770428979445,3.99426781,87.372,87.312,3.86567432]
[1770428979646,10.3081,87.37,87.312,3.86567432]
[1770428979850,3.99426781,87.372,87.312,3.86567432]
[1770428980848,3.99426781,87.372,87.317,3.86567432]
[1770428981947,3.99426781,87.403,87.331,3.86567432]
[1770428982448,3.99426781,87.401,87.345,10.3109]
[1770428982660,3.99426781,87.401,87.297,20.6332]
[1770428982661,3.99426781,87.456,87.351,3.86567432]
[1770428982851,3.99426781,87.449,87.355,3.86567432]
[1770428983054,3.99426781,87.423,87.358,3.86567432]
[1770428983640,3.99426781,87.423,87.361,3.86567432]
[1770428984656,10.2999,87.439,87.369,3.86567432]
[1770428984952,14.29416781,87.439,87.369,3.86567432]
[1770428985343,3.99426781,87.438,87.369,3.86567432]
[1770428985840,3.99426781,87.438,87.36,9.00285633]
[1770428985841,3.99426781,87.438,87.375,3.86567432]
[1770428986043,3.99426781,87.479,87.401,3.86567432]
[1770428987746,3.99426781,87.476,87.408,3.86567432]
[1770428988350,14.29016781,87.473,87.408,3.86567432]
[1770428988853,3.99426781,87.47,87.408,3.86567432]
[1770428990851,10.2969,87.465,87.408,3.86567432]
[1770428991250,3.99426781,87.461,87.415,3.86567432]
[1770428991949,3.99426781,87.456,87.381,3.86567432]
[1770428992357,3.99426781,87.437,87.381,3.86567432]
[1770428992848,3.99426781,87.434,87.361,3.86567432]
[1770428993757,3.99426781,87.414,87.361,3.86567432]
[1770428994156,3.99426781,87.398,87.341,3.86567432]
[1770428994549,3.99426781,87.364,87.292,10.3172]
[1770428994751,3.99426781,87.364,87.28,9.00285633]
[1770428996046,3.99426781,87.364,87.298,10.3165]
[1770428996750,3.99426781,87.364,87.28,9.00285633]
[1770428996751,3.99426781,87.364,87.301,3.86567432]
[1770428997158,10.3089,87.363,87.301,3.86567432]
[1770428997761,10.3074,87.376,87.304,3.86567432]
[1770428997946,3.99426781,87.383,87.304,3.86567432]
[1770428998452,14.29886781,87.399,87.327,3.86567432]
[1770428999756,3.99426781,87.398,87.329,3.86567432]
[1770429000956,3.99426781,87.398,87.249,34.47]
[1770429000957,3.99426781,87.429,87.341,3.86567432]
[1770429001260,3.99426781,87.419,87.341,3.86567432]
[1770429002261,3.99426781,87.397,87.341,3.86567432]
[1770429002557,3.99426781,87.439,87.343,3.86567432]
[1770429002760,3.99426781,87.432,87.343,3.86567432]
[1770429003358,10.3011,87.429,87.36,3.86567432]
[1770429004563,3.99426781,87.419,87.36,3.86567432]
[1770429004863,3.99426781,87.399,87.331,3.86567432]
[1770429005262,3.99426781,87.388,87.331,3.86567432]
[1770429006351,10.3042,87.403,87.331,3.86567432]
[1770429006557,3.92076617,87.423,87.333,3.74268502]
[1770429007062,10.3035,87.408,87.348,10.3105]
[1770429007255,10.3035,87.408,87.349,3.74268502]
[1770429007857,3.69285447,87.418,87.351,3.6689886]
[1770429008266,3.69285447,87.435,87.351,3.6689886]
[1770429008559,9.00285633,87.45,87.367,3.6689886]
[1770429008560,13.99335447,87.434,87.367,3.6689886]
[1770429008756,3.69285447,87.433,87.367,3.6689886]
[1770429009359,3.69285447,87.433,87.369,3.6689886]
[1770429011063,10.3009,87.431,87.372,10.3077]
[1770429011259,3.69285447,87.433,87.373,3.6689886]
[1770429011459,3.69285447,87.45,87.373,3.6689886]
[1770429011864,10.2993,87.444,87.384,13.9752886]
[1770429012056,3.69285447,87.45,87.384,13.9752886]
[1770429012564,3.69285447,87.447,87.384,13.9752886]
[1770429013269,10.2991,87.446,87.387,3.6689886]
[1770429014463,10.2991,87.446,87.389,3.6689886]
[1770429015764,3.69285447,87.447,87.392,3.6689886]
[1770429016268,3.69285447,87.463,87.402,10.3041]
[1770429016970,3.69285447,87.461,87.402,10.3041]
[1770429017366,10.298,87.455,87.392,3.6689886]
[1770429018671,3.69285447,87.461,87.404,3.6689886]
[1770429019371,10.2955,87.476,87.414,3.6689886]
[1770429019870,13.98835447,87.476,87.414,3.6689886]
[1770429020171,10.99333293,87.51,87.414,3.6689886]
[1770429020172,3.69285447,87.47,87.414,3.6689886]
[1770429020567,10.2974,87.46,87.414,3.6689886]
[1770429020774,3.69285447,87.459,87.407,10.3036]
[1770429020974,3.69285447,87.475,87.408,3.6689886]
[1770429021366,3.69285447,87.47,87.412,10.303]
[1770429021967,10.2974,87.46,87.408,3.6689886]
[1770429022264,8.97019341,87.5,87.408,3.6689886]
[1770429022265,3.69285447,87.459,87.408,3.6689886]
[1770429023374,10.2977,87.458,87.408,3.6689886]
[1770429023873,3.69285447,87.457,87.408,3.6689886]
[1770429024072,3.69285447,87.452,87.389,3.6689886]
[1770429025570,8.97019341,87.48,87.357,3.6689886]
[1770429025571,3.69285447,87.431,87.357,3.6689886]
[1770429026179,3.69285447,87.414,87.357,3.6689886]
[1770429026782,10.305,87.396,87.357,3.6689886]
[1770429026972,3.69285447,87.395,87.315,3.6689886]
[1770429028776,10.3075,87.375,87.315,3.6689886]
[1770429030178,10.3086,87.366,87.315,3.6689886]
[1770429030777,14.00175447,87.363,87.315,3.6689886]
[1770429031173,3.69285447,87.363,87.315,3.6689886]
[1770429031479,10.3077,87.373,87.315,3.6689886]
[1770429032181,3.69285447,87.38,87.321,3.6689886]
[1770429034782,10.3074,87.375,87.321,3.6689886]
[1770429038673,3.69285447,87.38,87.321,3.6689886]
[1770429038674,10.3062,87.386,87.321,3.6689886]
[1770429038974,3.722979,87.395,87.321,3.6689886]
[1770429039885,3.722979,87.395,87.333,3.68857909]
[1770429040294,3.722979,87.365,87.305,10.3156]
[1770429040780,3.722979,87.365,87.294,3.68857909]
[1770429040984,3.722979,87.364,87.307,3.68857909]
[1770429041585,3.722979,87.379,87.319,3.68857909]
[1770429043083,3.722979,87.376,87.319,3.68857909]
[1770429043688,14.031779,87.364,87.319,3.68857909]
[1770429045088,3.722979,87.359,87.305,10.3156]
[1770429045688,3.722979,87.353,87.304,3.68857909]
[1770429046689,10.3104,87.35,87.304,3.68857909]
[1770429047394,3.722979,87.345,87.288,3.68857909]
[1770429047600,3.722979,87.345,87.272,3.68857909]
[1770429048493,3.722979,87.325,87.275,3.68857909]
[1770429049298,3.722979,87.322,87.275,3.68857909]
[1770429050005,3.722979,87.359,87.285,3.68857909]
[1770429050396,3.722979,87.356,87.304,10.3157]
[1770429050596,3.722979,87.356,87.285,3.68857909]
[1770429050905,3.722979,87.356,87.224,27.36086825]
[1770429050906,3.722979,87.46,87.372,3.68857909]
[1770429051402,3.722979,87.449,87.353,3.68857909]
[1770429051603,3.722979,87.443,87.358,10.3094]
[1770429051801,8.97019341,87.47,87.353,3.68857909]
[1770429051802,3.722979,87.429,87.353,3.68857909]
[1770429052005,3.722979,87.429,87.334,3.68857909]
[1770429052206,3.722979,87.429,87.35,3.68857909]
[1770429052604,3.722979,87.448,87.361,3.68857909]
[1770429052807,3.722979,87.448,87.367,3.68857909]
[1770429053211,3.722979,87.448,87.384,3.68857909]
[1770429053511,3.722979,87.448,87.361,3.68857909]
[1770429054495,3.722979,87.429,87.347,3.68857909]
[1770429055510,3.722979,87.429,87.363,3.68857909]
[1770429056802,3.722979,87.429,87.364,10.3087]
[1770429057601,3.722979,87.428,87.364,3.68857909]
[1770429059613,3.722979,87.419,87.349,3.68857909]
[1770429060615,3.722979,87.399,87.313,3.68857909]
[1770429061006,3.722979,87.39,87.313,3.68857909]
[1770429062705,3.722979,87.39,87.314,3.68857909]
[1770429063408,3.722979,87.39,87.316,17.52995929]
[1770429063715,3.722979,87.382,87.317,3.68857909]
[1770429064109,3.722979,87.382,87.321,17.52995929]
[1770429064313,3.722979,87.382,87.323,3.68857909]
[1770429064617,3.722979,87.418,87.336,3.68857909]
[1770429064803,3.722979,87.418,87.355,3.68857909]
[1770429065003,3.722979,87.418,87.355,17.52995929]
[1770429065203,3.722979,87.418,87.356,13.8413802]
[1770429065613,3.722979,87.418,87.358,13.8413802]
[1770429065818,3.722979,87.418,87.358,17.51327902]
[1770429066017,3.722979,87.418,87.363,13.8413802]
[1770429066216,3.722979,87.418,87.364,17.51327902]
[1770429066517,3.722979,87.418,87.366,13.8413802]
[1770429066718,3.86105764,87.444,87.376,3.67189882]
[1770429066911,3.86105764,87.444,87.385,13.8413802]
[1770429067311,3.86105764,87.444,87.384,3.67189882]
[1770429067312,3.86105764,87.444,87.387,3.67189882]
[1770429067619,3.86105764,87.444,87.394,13.8413802]
[1770429067817,3.86105764,87.444,87.391,13.8413802]
[1770429068211,3.86105764,87.444,87.39,13.8413802]
[1770429068417,3.73741506,87.501,87.428,10.3011]
[1770429068614,3.73741506,87.501,87.393,3.97544371]
[1770429068615,3.73741506,87.499,87.418,13.8413802]
[1770429068812,3.73741506,87.479,87.413,13.8413802]
[1770429069016,3.73741506,87.479,87.408,13.8413802]
[1770429069216,3.73741506,87.472,87.398,13.8413802]
[1770429069409,3.73741506,87.472,87.403,13.8413802]
[1770429069816,3.73741506,87.47,87.398,24.1460802]
[1770429070315,3.73741506,87.47,87.399,3.97544371]
[1770429070720,10.2965,87.468,87.399,3.97544371]
[1770429070919,3.73741506,87.467,87.399,3.97544371]
[1770429071520,3.73741506,87.467,87.406,3.97544371]
[1770429072424,14.03411506,87.466,87.406,3.97544371]
[1770429072720,3.73741506,87.466,87.406,3.97544371]
[1770429075818,3.73741506,87.465,87.406,3.97544371]
[1770429076927,3.73741506,87.453,87.392,3.97544371]
[1770429077421,3.73741506,87.453,87.375,3.97544371]
[1770429077628,3.73741506,87.441,87.375,3.97544371]
[1770429077823,3.73741506,87.429,87.357,3.97544371]
[1770429078830,10.3027,87.415,87.357,3.97544371]
[1770429079135,3.73741506,87.429,87.36,3.97544371]
[1770429079321,10.2998,87.44,87.375,3.97544371]
[1770429079523,3.73741506,87.446,87.375,3.97544371]
[1770429079731,3.73741506,87.466,87.391,3.97544371]
[1770429079920,3.73741506,87.466,87.398,3.97544371]
[1770429080120,10.2969,87.465,87.401,3.97544371]
[1770429081423,10.2957,87.475,87.409,3.97544371]
[1770429081623,3.73741506,87.483,87.41,3.97544371]
[1770429081821,3.73741506,87.483,87.418,3.97544371]
[1770429082022,3.73741506,87.483,87.422,3.97544371]
[1770429082218,3.73741506,87.483,87.424,3.97544371]
[1770429082827,10.2962,87.47,87.424,3.97544371]
[1770429083023,3.73741506,87.469,87.405,3.97544371]
[1770429084927,10.2966,87.468,87.405,3.97544371]
[1770429085728,10.2966,87.468,87.38,8.97300786]
[1770429085729,3.73741506,87.464,87.387,13.8413802]
[1770429085928,3.73741506,87.464,87.386,3.97544371]
[1770429086330,3.73741506,87.449,87.386,3.97544371]
[1770429087130,10.2988,87.448,87.392,3.97544371]
[1770429087336,3.73741506,87.464,87.392,3.97544371]
[1770429088034,10.2986,87.45,87.394,3.97544371]
[1770429088833,10.2986,87.45,87.365,20.73837053]
[1770429088834,3.73741506,87.44,87.377,3.97544371]
[1770429089835,8.97300786,87.46,87.377,3.97544371]
[1770429089836,3.73741506,87.431,87.377,3.97544371]
[1770429090235,3.73741506,87.469,87.381,13.8413802]
[1770429090536,3.73741506,87.446,87.391,3.97544371]
[1770429091339,3.73741506,87.443,87.375,3.97544371]
[1770429092734,3.73741506,87.41,87.348,13.8413802]
[1770429092942,3.73741506,87.41,87.341,13.8413802]
[1770429093137,3.73741506,87.409,87.338,3.97544371]
[1770429093332,8.97300786,87.41,87.323,20.73837053]
[1770429093333,3.73741506,87.379,87.323,13.8413802]
[1770429093537,3.73741506,87.379,87.316,3.97544371]
[1770429094248,10.3097,87.356,87.316,3.97544371]
[1770429094440,3.73741506,87.379,87.316,3.97544371]
[1770429095038,10.3073,87.376,87.316,3.97544371]
[1770429095734,10.3061,87.387,87.32,3.79854937]
[1770429096136,3.85121873,87.386,87.32,3.79854937]
[1770429097038,3.85121873,87.384,87.32,3.79854937]
[1770429097843,8.97300786,87.41,87.32,3.79854937]
[1770429097844,3.85121873,87.381,87.32,3.79854937]
[1770429098839,3.85121873,87.381,87.29,8.97300786]
[1770429098840,3.85121873,87.371,87.302,3.79854937]
[1770429099846,10.31,87.354,87.302,3.79854937]
[1770429101144,10.3087,87.365,87.303,3.79854937]
[1770429102137,3.85121873,87.359,87.287,3.79854937]
[1770429102342,3.85121873,87.359,87.271,3.79854937]
[1770429103442,10.3132,87.326,87.272,10.3195]
[1770429104041,3.85121873,87.33,87.277,10.3189]
[1770429104658,3.85121873,87.33,87.278,3.79854937]
[1770429105357,34.47,87.394,87.25,8.97300786]
[1770429105358,3.85121873,87.348,87.28,3.79854937]
[1770429106160,14.16191873,87.348,87.28,3.79854937]
[1770429106460,3.85121873,87.347,87.28,3.79854937]
[1770429106961,3.85121873,87.342,87.28,3.79854937]
[1770429107855,10.3118,87.338,87.28,3.79854937]
[1770429108159,14.16301873,87.338,87.28,3.79854937]
[1770429108555,10.3121,87.335,87.28,3.79854937]
[1770429109960,3.85121873,87.337,87.283,3.79854937]
[1770429110255,8.97300786,87.36,87.283,3.79854937]
[1770429110461,3.85121873,87.359,87.283,3.79854937]
[1770429110758,3.85121873,87.359,87.204,27.67809165]
[1770429110759,3.85121873,87.338,87.251,3.79854937]
[1770429111164,3.85121873,87.298,87.227,3.79854937]
[1770429112761,10.3179,87.287,87.228,10.3247]
[1770429113463,10.3185,87.282,87.228,10.3247]
[1770429115562,10.3185,87.282,87.23,14.12304937]
[1770429115765,3.85121873,87.286,87.231,3.79854937]
[1770429116158,3.85121873,87.286,87.233,3.79854937]
[1770429117161,3.85121873,87.267,87.213,3.79854937]
[1770429117667,3.85121873,87.262,87.204,10.3275]
[1770429119265,3.85121873,87.262,87.208,10.3271]
[1770429119661,10.3209,87.261,87.208,10.3271]
[1770429120067,3.85121873,87.26,87.205,3.79854937]
[1770429120266,10.3215,87.256,87.205,3.79854937]
[1770429120475,3.85121873,87.255,87.198,10.3282]
[1770429120970,3.85121873,87.253,87.188,3.79854937]
[1770429121978,10.3221,87.252,87.192,3.79854937]
[1770429122377,3.85121873,87.253,87.192,3.79854937]
[1770429122577,3.85121873,87.269,87.209,14.12544937]
[1770429122778,3.85121873,87.269,87.18,8.97300786]
[1770429122779,3.85121873,87.269,87.21,3.79854937]
[1770429124477,3.85121873,87.269,87.214,14.12484937]
[1770429124677,3.85121873,87.269,87.215,3.79854937]
[1770429125074,3.85121873,87.249,87.181,3.79854937]
[1770429125279,8.97300786,87.29,87.149,20.6683]
[1770429125280,3.85121873,87.289,87.191,3.79854937]
[1770429126278,3.66295287,87.277,87.22,3.79994915]
[1770429126986,13.98215287,87.276,87.22,3.79994915]
[1770429127278,3.66295287,87.275,87.203,3.79994915]
[1770429127483,3.66295287,87.256,87.203,3.79994915]
[1770429128589,3.66897587,87.243,87.187,3.77106908]
[1770429129391,13.99327587,87.232,87.174,3.77106908]
[1770429129682,3.66897587,87.232,87.174,3.77106908]
[1770429130481,10.3263,87.216,87.174,3.77106908]
[1770429130678,3.66897587,87.232,87.174,3.77106908]
[1770429131779,10.3266,87.213,87.174,3.77106908]
[1770429131986,3.66897587,87.213,87.12,8.97300786]
[1770429132186,3.66897587,87.213,87.141,3.77106908]
[1770429133789,10.3285,87.197,87.142,14.10596908]
[1770429134086,3.66897587,87.197,87.142,3.77106908]
[1770429134589,3.66897587,87.197,87.052,34.45]
[1770429134590,3.66897587,87.187,87.124,3.77106908]
[1770429135494,10.3307,87.178,87.124,3.77106908]
[1770429136985,8.97300786,87.2,87.124,3.77106908]
[1770429136986,10.332,87.167,87.124,3.77106908]
[1770429137188,10.332,87.167,87.081,3.77106908]
[1770429137784,10.332,87.167,87.075,20.6857]
[1770429137785,3.66897587,87.177,87.118,3.77106908]
[1770429138790,8.97300786,87.2,87.121,3.77106908]
[1770429138988,3.66897587,87.202,87.121,3.77106908]
[1770429139188,3.66897587,87.199,87.121,3.77106908]
[1770429139490,8.97300786,87.2,87.105,3.77106908]
[1770429139491,3.66897587,87.182,87.105,3.77106908]
[1770429139693,3.66897587,87.159,87.061,3.77106908]
[1770429140788,3.66897587,87.149,87.084,3.77106908]
[1770429141188,3.66897587,87.147,87.087,10.3414]
[1770429142188,3.66897587,87.142,87.087,10.3414]
[1770429143392,3.66897587,87.142,87.087,14.11246908]
[1770429143794,3.66897587,87.142,87.078,10.3426]
[1770429144192,3.66897587,87.132,87.071,3.77106908]
[1770429145901,3.66897587,87.132,87.072,10.3432]